[Event "*** Titled Tuesday Blitz"]
[Site "Chess.com"]
[Date "2018.06.05"]
[Round "1"]
[White "NDePinEsPeRG"]
[Black "FranklinAPalomo"]
[Result "1-0"]
[WhiteElo "2649"]
[BlackElo "2327"]
[TimeControl "180+2"]
[EndTime "13:10:09 PDT"]
[Termination "NDePinEsPeRG won by resignation"]

1. d4 {[%clk 0:03:01.3]} 1... c5 {[%clk 0:03:01.5]} 2. d5 {[%clk 0:03:01]} 2...
Nf6 {[%clk 0:03:01.7]} 3. Nc3 {[%clk 0:03:01.4]} 3... d6 {[%clk 0:03:02.8]} 4.
e4 {[%clk 0:03:01.9]} 4... g6 {[%clk 0:03:04.7]} 5. Bb5+ {[%clk 0:03:00.5]} 5...
Bd7 {[%clk 0:03:04.4]} 6. a4 {[%clk 0:03:00.9]} 6... Bg7 {[%clk 0:03:05.1]} 7.
Nf3 {[%clk 0:03:00.1]} 7... O-O {[%clk 0:03:06.4]} 8. O-O {[%clk 0:03:00.6]}
8... Bg4 {[%clk 0:03:07.1]} 9. h3 {[%clk 0:03:00.9]} 9... Bxf3 {[%clk
0:03:08.4]} 10. Qxf3 {[%clk 0:03:01.5]} 10... a6 {[%clk 0:03:10.3]} 11. Be2
{[%clk 0:02:48.7]} 11... Nbd7 {[%clk 0:03:12.2]} 12. Bg5 {[%clk 0:02:47.6]}
12... Ne8 {[%clk 0:03:07]} 13. Qe3 {[%clk 0:02:38.7]} 13... Nc7 {[%clk 0:03:05]}
14. Bh6 {[%clk 0:02:37]} 14... Qe8 {[%clk 0:02:41.2]} 15. a5 {[%clk 0:02:33.2]}
15... e5 {[%clk 0:02:37.5]} 16. dxe6 {[%clk 0:02:30.3]} 16... Qxe6 {[%clk
0:02:36.5]} 17. Bxg7 {[%clk 0:02:26.9]} 17... Kxg7 {[%clk 0:02:37.1]} 18. Rfd1
{[%clk 0:02:25.6]} 18... Rad8 {[%clk 0:02:30.1]} 19. Bg4 {[%clk 0:02:19.6]}
19... Qe7 {[%clk 0:02:30]} 20. Bxd7 {[%clk 0:02:16.2]} 20... Rxd7 {[%clk
0:02:30]} 21. Rd3 {[%clk 0:02:15.9]} 21... Re8 {[%clk 0:02:29.9]} 22. Rad1
{[%clk 0:02:07.3]} 22... Red8 {[%clk 0:02:24.2]} 23. Na4 {[%clk 0:01:52.8]}
23... Qe6 {[%clk 0:02:03.7]} 24. b3 {[%clk 0:01:44.3]} 24... h6 {[%clk
0:02:03.3]} 25. e5 {[%clk 0:01:25.7]} 25... Ne8 {[%clk 0:01:36.9]} 26. exd6
{[%clk 0:01:18]} 26... Qxe3 {[%clk 0:01:35.7]} 27. Rxe3 {[%clk 0:01:12.1]} 27...
Rxd6 {[%clk 0:01:37.3]} 28. Rxd6 {[%clk 0:01:10.7]} 28... Nxd6 {[%clk
0:01:38.8]} 29. Nxc5 {[%clk 0:01:10.8]} 29... Rc8 {[%clk 0:01:37.3]} 30. b4
{[%clk 0:01:07.1]} 30... Rc7 {[%clk 0:01:35.5]} 31. Kf1 {[%clk 0:01:05.2]} 31...
h5 {[%clk 0:01:30.1]} 32. Ke2 {[%clk 0:01:05.8]} 32... Nc4 {[%clk 0:01:24.2]}
33. Rc3 {[%clk 0:01:03.6]} 33... Re7+ {[%clk 0:01:24.7]} 34. Kd1 {[%clk
0:00:51.6]} 34... Nd6 {[%clk 0:01:16]} 35. Rd3 {[%clk 0:00:52.5]} 35... Nb5
{[%clk 0:00:56.4]} 36. c4 {[%clk 0:00:50.3]} 36... Na7 {[%clk 0:00:53.8]} 37.
Kd2 {[%clk 0:00:45.9]} 37... Nc6 {[%clk 0:00:54.4]} 38. Kc3 {[%clk 0:00:43.9]}
38... Re1 {[%clk 0:00:51.6]} 39. Nxb7 {[%clk 0:00:40.6]} 39... Rc1+ {[%clk
0:00:51.3]} 40. Kd2 {[%clk 0:00:37.6]} 40... Rxc4 {[%clk 0:00:50.9]} 41. Rc3
{[%clk 0:00:36.5]} 41... Rd4+ {[%clk 0:00:40.4]} 42. Ke3 {[%clk 0:00:37.2]}
42... Rxb4 {[%clk 0:00:41.9]} 43. Rxc6 {[%clk 0:00:37.5]} 43... Rxb7 {[%clk
0:00:43.4]} 44. Rxa6 {[%clk 0:00:38]} 44... Rb2 {[%clk 0:00:44.6]} 45. Rb6
{[%clk 0:00:38.3]} 45... Ra2 {[%clk 0:00:46]} 46. a6 {[%clk 0:00:39.2]} 46... h4
{[%clk 0:00:46.1]} 47. Kf3 {[%clk 0:00:37.8]} 47... Ra4 {[%clk 0:00:45.9]} 48.
g3 {[%clk 0:00:36.6]} 48... hxg3 {[%clk 0:00:44.1]} 49. fxg3 {[%clk 0:00:37.5]}
49... g5 {[%clk 0:00:45.5]} 50. g4 {[%clk 0:00:36.2]} 50... f6 {[%clk
0:00:46.7]} 51. Rb7+ {[%clk 0:00:36.7]} 51... Kg6 {[%clk 0:00:47.9]} 52. a7
{[%clk 0:00:38.3]} 52... Ra3+ {[%clk 0:00:48.8]} 53. Ke4 {[%clk 0:00:39.2]}
53... Ra5 {[%clk 0:00:47.1]} 54. Kd4 {[%clk 0:00:39.8]} 54... f5 {[%clk
0:00:45.6]} 55. gxf5+ {[%clk 0:00:40.1]} 55... Kxf5 {[%clk 0:00:47.5]} 56. Kc4
{[%clk 0:00:40.8]} 56... Kf4 {[%clk 0:00:47.2]} 57. Kb4 {[%clk 0:00:40.2]} 57...
Ra1 {[%clk 0:00:48.6]} 58. Rh7 {[%clk 0:00:39.6]} 58... Kg3 {[%clk 0:00:42.6]}
59. Kc5 {[%clk 0:00:40.5]} 59... Kf4 {[%clk 0:00:29.7]} 60. Kb6 {[%clk
0:00:40.3]} 60... Kg3 {[%clk 0:00:30.7]} 61. Rh5 {[%clk 0:00:38.6]} 61... Kf4
{[%clk 0:00:30]} 62. Rh6 {[%clk 0:00:36.7]} 62... Kg3 {[%clk 0:00:23.6]} 63. Kb7
{[%clk 0:00:37.5]} 63... Rb1+ {[%clk 0:00:20.8]} 64. Rb6 {[%clk 0:00:37]} 64...
Ra1 {[%clk 0:00:18.9]} 65. Rb3+ {[%clk 0:00:37.5]} 65... Kh4 {[%clk 0:00:17.8]}
66. a8=Q {[%clk 0:00:39]} 66... Rxa8 {[%clk 0:00:18.6]} 67. Kxa8 {[%clk
0:00:39.8]} 1-0

[Event "*** Titled Tuesday Blitz"]
[Site "Chess.com"]
[Date "2018.06.05"]
[Round "1"]
[White "GGX0X0"]
[Black "Max_Schachmann"]
[Result "1-0"]
[WhiteElo "2327"]
[BlackElo "2617"]
[TimeControl "180+2"]
[EndTime "13:10:19 PDT"]
[Termination "GGX0X0 won by resignation"]

1. e4 {[%clk 0:03:01]} 1... e5 {[%clk 0:02:57.4]} 2. Nf3 {[%clk 0:03:01.3]} 2...
Nf6 {[%clk 0:02:58.1]} 3. Nxe5 {[%clk 0:02:56.9]} 3... d6 {[%clk 0:02:57.8]} 4.
Nf3 {[%clk 0:02:57.9]} 4... Nxe4 {[%clk 0:02:57.4]} 5. Qe2 {[%clk 0:02:34.5]}
5... Qe7 {[%clk 0:02:52]} 6. d3 {[%clk 0:02:31.4]} 6... Nf6 {[%clk 0:02:53.1]}
7. Qxe7+ {[%clk 0:02:20.4]} 7... Bxe7 {[%clk 0:02:53]} 8. d4 {[%clk 0:02:21.3]}
8... Bf5 {[%clk 0:02:48.5]} 9. c3 {[%clk 0:02:18.9]} 9... O-O {[%clk 0:02:48.5]}
10. Be2 {[%clk 0:02:18.3]} 10... Re8 {[%clk 0:02:44.1]} 11. O-O {[%clk
0:02:18.9]} 11... Nbd7 {[%clk 0:02:38.7]} 12. Na3 {[%clk 0:02:17.3]} 12... d5
{[%clk 0:02:32]} 13. Nb5 {[%clk 0:02:04.4]} 13... Bd8 {[%clk 0:02:32.7]} 14. Re1
{[%clk 0:01:50.4]} 14... Rxe2 {[%clk 0:02:22.5]} 15. Rxe2 {[%clk 0:01:47.9]}
15... Bd3 {[%clk 0:02:23]} 16. Nxc7 {[%clk 0:01:16]} 16... Bxc7 {[%clk
0:02:24.9]} 17. Re1 {[%clk 0:01:13.1]} 17... b5 {[%clk 0:02:05.5]} 18. Bd2
{[%clk 0:01:12.7]} 18... Ne4 {[%clk 0:02:04.3]} 19. a4 {[%clk 0:01:04.6]} 19...
bxa4 {[%clk 0:01:41.2]} 20. Rxa4 {[%clk 0:01:02.2]} 20... Nb6 {[%clk 0:01:32.6]}
21. Raa1 {[%clk 0:00:55.8]} 21... Kf8 {[%clk 0:01:29.3]} 22. Bc1 {[%clk
0:00:49.4]} 22... a5 {[%clk 0:01:27.4]} 23. Nd2 {[%clk 0:00:30.8]} 23... a4
{[%clk 0:01:20.5]} 24. f3 {[%clk 0:00:30.4]} 24... Nd6 {[%clk 0:01:18.1]} 25. b3
{[%clk 0:00:28.5]} 25... axb3 {[%clk 0:01:10.2]} 26. Rxa8+ {[%clk 0:00:30.4]}
26... Nxa8 {[%clk 0:01:10.9]} 27. Nxb3 {[%clk 0:00:32.1]} 27... Nb5 {[%clk
0:01:02.2]} 28. Nc5 {[%clk 0:00:32.5]} 28... Bf5 {[%clk 0:00:56.1]} 29. g4
{[%clk 0:00:26.4]} 29... Bc8 {[%clk 0:00:55.7]} 30. Bd2 {[%clk 0:00:25.4]} 30...
Nb6 {[%clk 0:00:54.1]} 31. Rb1 {[%clk 0:00:24.5]} 31... Nd6 {[%clk 0:00:55]} 32.
Bf4 {[%clk 0:00:23.8]} 32... Nbc4 {[%clk 0:00:51.4]} 33. Nd3 {[%clk 0:00:20.4]}
33... f6 {[%clk 0:00:46]} 34. Ra1 {[%clk 0:00:21.8]} 34... g5 {[%clk 0:00:44.6]}
35. Bg3 {[%clk 0:00:21.9]} 35... Ke7 {[%clk 0:00:28.5]} 36. Nc5 {[%clk
0:00:22.4]} 36... f5 {[%clk 0:00:23.7]} 37. Re1+ {[%clk 0:00:23.4]} 37... Kf6
{[%clk 0:00:23.1]} 38. Be5+ {[%clk 0:00:24.2]} 38... Kf7 {[%clk 0:00:22.5]} 39.
gxf5 {[%clk 0:00:25.5]} 39... Bd7 {[%clk 0:00:24.4]} 40. Nxd7 {[%clk 0:00:25.3]}
40... Nd2 {[%clk 0:00:12.3]} 41. Kg2 {[%clk 0:00:24.5]} 41... N2c4 {[%clk
0:00:12.7]} 42. Nc5 {[%clk 0:00:23.3]} 42... Ba5 {[%clk 0:00:13]} 43. Bxd6
{[%clk 0:00:23.4]} 43... Nxd6 {[%clk 0:00:13.8]} 44. Re3 {[%clk 0:00:22.9]}
44... Nxf5 {[%clk 0:00:15]} 45. Rd3 {[%clk 0:00:23.7]} 45... Nh4+ {[%clk
0:00:15.4]} 46. Kg3 {[%clk 0:00:24.2]} 46... Ng6 {[%clk 0:00:16.7]} 47. Kg4
{[%clk 0:00:25]} 47... h6 {[%clk 0:00:14]} 48. Nb3 {[%clk 0:00:25.9]} 48... Bc7
{[%clk 0:00:14.6]} 49. h3 {[%clk 0:00:24.2]} 49... Nh4 {[%clk 0:00:14.5]} 50.
Re3 {[%clk 0:00:21.5]} 50... Bf4 {[%clk 0:00:13.2]} 51. Re2 {[%clk 0:00:20.6]}
51... Bd6 {[%clk 0:00:14.1]} 52. Nc5 {[%clk 0:00:21.6]} 52... Ng6 {[%clk
0:00:15.5]} 53. Nd3 {[%clk 0:00:22.4]} 53... Kf6 {[%clk 0:00:16.1]} 54. Ne5
{[%clk 0:00:23.1]} 54... h5+ {[%clk 0:00:17.3]} 55. Kg3 {[%clk 0:00:22.7]} 55...
Nh4 {[%clk 0:00:18.1]} 56. Ra2 {[%clk 0:00:23]} 56... Bxe5+ {[%clk 0:00:18.9]}
57. dxe5+ {[%clk 0:00:24.4]} 57... Kxe5 {[%clk 0:00:20.8]} 58. Ra5 {[%clk
0:00:25.7]} 58... Nf5+ {[%clk 0:00:22.1]} 59. Kf2 {[%clk 0:00:26.3]} 59... Nd6
{[%clk 0:00:22.7]} 60. Ra8 {[%clk 0:00:24.2]} 60... Nb5 {[%clk 0:00:23.6]} 61.
Rc8 {[%clk 0:00:24.5]} 61... d4 {[%clk 0:00:23.5]} 62. Rc5+ {[%clk 0:00:23.8]}
62... Kf4 {[%clk 0:00:23]} 63. Rxb5 {[%clk 0:00:25.1]} 63... dxc3 {[%clk
0:00:23.9]} 64. Rb4+ {[%clk 0:00:26.4]} 64... Kf5 {[%clk 0:00:24.2]} 65. Rc4
{[%clk 0:00:28.3]} 65... Kf6 {[%clk 0:00:25.4]} 66. Rxc3 {[%clk 0:00:29.7]}
66... Kg6 {[%clk 0:00:26.5]} 67. Rc4 {[%clk 0:00:31.6]} 67... Kf6 {[%clk
0:00:28.4]} 68. Ke3 {[%clk 0:00:33.5]} 1-0

[Event "*** Titled Tuesday Blitz"]
[Site "Chess.com"]
[Date "2018.06.05"]
[Round "1"]
[White "rasmussvane"]
[Black "NMJeevanK"]
[Result "1/2-1/2"]
[WhiteElo "2572"]
[BlackElo "2285"]
[TimeControl "180+2"]
[EndTime "13:10:21 PDT"]
[Termination "Game drawn by repetition"]

1. Nf3 {[%clk 0:03:01.1]} 1... d5 {[%clk 0:03:00.9]} 2. d4 {[%clk 0:03:01.2]}
2... Nf6 {[%clk 0:03:01.5]} 3. c4 {[%clk 0:03:02]} 3... e6 {[%clk 0:03:02.2]} 4.
Nc3 {[%clk 0:03:02.9]} 4... c5 {[%clk 0:03:03.8]} 5. cxd5 {[%clk 0:03:03.6]}
5... exd5 {[%clk 0:03:04.8]} 6. Bg5 {[%clk 0:03:01.7]} 6... Be6 {[%clk
0:03:03.7]} 7. e3 {[%clk 0:03:01.7]} 7... Nc6 {[%clk 0:03:03.8]} 8. Be2 {[%clk
0:02:47.7]} 8... h6 {[%clk 0:03:02.6]} 9. Bxf6 {[%clk 0:02:44.1]} 9... Qxf6
{[%clk 0:03:02.1]} 10. O-O {[%clk 0:02:45.6]} 10... cxd4 {[%clk 0:02:58.6]} 11.
Nxd4 {[%clk 0:02:46.6]} 11... Nxd4 {[%clk 0:02:57.7]} 12. exd4 {[%clk
0:02:47.8]} 12... a6 {[%clk 0:02:55.9]} 13. Qa4+ {[%clk 0:02:42.2]} 13... Bd7
{[%clk 0:02:56.4]} 14. Bb5 {[%clk 0:02:37.2]} 14... Qd6 {[%clk 0:02:11.5]} 15.
Bxd7+ {[%clk 0:02:17.2]} 15... Qxd7 {[%clk 0:02:11.2]} 16. Rfe1+ {[%clk
0:02:09.7]} 16... Be7 {[%clk 0:02:07.7]} 17. Qa3 {[%clk 0:01:37.6]} 17... Kf8
{[%clk 0:02:02]} 18. Qb3 {[%clk 0:01:37.7]} 18... Rd8 {[%clk 0:01:58.5]} 19. Re5
{[%clk 0:01:38.5]} 19... b5 {[%clk 0:01:30.5]} 20. Rxd5 {[%clk 0:01:35.7]} 20...
Qc7 {[%clk 0:01:26.6]} 21. Re1 {[%clk 0:01:33.2]} 21... Bd6 {[%clk 0:01:18.4]}
22. g3 {[%clk 0:01:30.4]} 22... Kg8 {[%clk 0:01:19.7]} 23. Rf5 {[%clk
0:01:26.6]} 23... g6 {[%clk 0:01:14.4]} 24. Nd5 {[%clk 0:01:27.2]} 24... Qc4
{[%clk 0:00:55.6]} 25. Qxc4 {[%clk 0:01:11.6]} 25... bxc4 {[%clk 0:00:57.5]} 26.
Rf3 {[%clk 0:01:13.1]} 26... Kg7 {[%clk 0:00:55.2]} 27. Rc1 {[%clk 0:01:01.9]}
27... Bxg3 {[%clk 0:00:51.8]} 28. hxg3 {[%clk 0:01:02]} 28... Rxd5 {[%clk
0:00:53.1]} 29. Rxc4 {[%clk 0:01:03.5]} 29... Rhd8 {[%clk 0:00:53.5]} 30. Rc6
{[%clk 0:01:04.3]} 30... Rxd4 {[%clk 0:00:51.8]} 31. Rxa6 {[%clk 0:01:04.5]}
31... Rb4 {[%clk 0:00:48.7]} 32. Ra7 {[%clk 0:01:04.3]} 32... Rf8 {[%clk
0:00:49]} 33. b3 {[%clk 0:01:04.9]} 33... g5 {[%clk 0:00:49.9]} 34. Kg2 {[%clk
0:01:05.5]} 34... Kg6 {[%clk 0:00:50.7]} 35. a3 {[%clk 0:01:04.3]} 35... Rb6
{[%clk 0:00:50.8]} 36. b4 {[%clk 0:01:05]} 36... f6 {[%clk 0:00:51.2]} 37. Re3
{[%clk 0:01:03]} 37... h5 {[%clk 0:00:50.6]} 38. Rc7 {[%clk 0:01:00.5]} 38...
Ra8 {[%clk 0:00:49.8]} 39. Rcc3 {[%clk 0:00:58.4]} 39... Ra4 {[%clk 0:00:50.5]}
40. Rb3 {[%clk 0:00:58.2]} 40... Kf5 {[%clk 0:00:46.7]} 41. Rec3 {[%clk
0:00:57.8]} 41... Kg6 {[%clk 0:00:44.3]} 42. Rc5 {[%clk 0:00:58.3]} 42... Rba6
{[%clk 0:00:41.2]} 43. Rcc3 {[%clk 0:00:58.8]} 43... Rb6 {[%clk 0:00:42.4]} 44.
b5 {[%clk 0:00:56]} 44... Ra5 {[%clk 0:00:42.3]} 45. Rc5 {[%clk 0:00:56.4]}
45... Kf7 {[%clk 0:00:39.2]} 46. Kf3 {[%clk 0:00:46.9]} 46... Ke6 {[%clk
0:00:40.1]} 47. Ke3 {[%clk 0:00:45.7]} 47... Kd6 {[%clk 0:00:40.8]} 48. Rf5
{[%clk 0:00:46.6]} 48... Ke6 {[%clk 0:00:38.3]} 49. Rc5 {[%clk 0:00:47.5]} 49...
Kd6 {[%clk 0:00:39.3]} 50. Kd4 {[%clk 0:00:48.2]} 50... Ra4+ {[%clk 0:00:38.1]}
51. Rc4 {[%clk 0:00:49.2]} 51... Ra5 {[%clk 0:00:37.2]} 52. a4 {[%clk
0:00:50.1]} 52... Rb8 {[%clk 0:00:34.1]} 53. Rbb4 {[%clk 0:00:46]} 53... Rb6
{[%clk 0:00:33.5]} 54. Rc5 {[%clk 0:00:42.9]} 54... Kd7 {[%clk 0:00:30.2]} 55.
Kc4 {[%clk 0:00:42.6]} 55... Ra8 {[%clk 0:00:24.6]} 56. Kb3 {[%clk 0:00:42.4]}
56... Ra5 {[%clk 0:00:21.7]} 57. Rd4+ {[%clk 0:00:42.9]} 57... Ke6 {[%clk
0:00:22.9]} 58. Kb4 {[%clk 0:00:44]} 58... Ra8 {[%clk 0:00:22.5]} 59. a5 {[%clk
0:00:45.3]} 59... Rbb8 {[%clk 0:00:21.6]} 60. b6 {[%clk 0:00:46.5]} 60... Ra7
{[%clk 0:00:21.7]} 61. Kb5 {[%clk 0:00:46.2]} 61... Rab7 {[%clk 0:00:21.9]} 62.
Rc6+ {[%clk 0:00:47.3]} 62... Ke5 {[%clk 0:00:23.2]} 63. Rdc4 {[%clk 0:00:47.7]}
63... Rd7 {[%clk 0:00:23.8]} 64. a6 {[%clk 0:00:48]} 64... Rd2 {[%clk
0:00:23.4]} 65. a7 {[%clk 0:00:47.5]} 65... Rb2+ {[%clk 0:00:21.8]} 66. Kc5
{[%clk 0:00:43.9]} 66... Rd8 {[%clk 0:00:19.9]} 67. Rc3 {[%clk 0:00:35.1]} 67...
Rd5+ {[%clk 0:00:17.8]} 68. Kc4 {[%clk 0:00:36.4]} 68... Rd4+ {[%clk 0:00:17.3]}
69. Kc5 {[%clk 0:00:37.8]} 69... Rd5+ {[%clk 0:00:16.9]} 70. Kc4 {[%clk
0:00:39.1]} 70... Rd4+ {[%clk 0:00:14.1]} 71. Kc5 {[%clk 0:00:40.6]} 71... Rd5+
{[%clk 0:00:15]} 72. Kc4 {[%clk 0:00:41.8]} 1/2-1/2

[Event "*** Titled Tuesday Blitz"]
[Site "Chess.com"]
[Date "2018.06.05"]
[Round "1"]
[White "twitchTriniCupid"]
[Black "Fighterman91"]
[Result "1/2-1/2"]
[WhiteElo "2257"]
[BlackElo "2553"]
[TimeControl "180+2"]
[EndTime "13:10:24 PDT"]
[Termination "Game drawn by agreement"]

1. d4 {[%clk 0:03:01.9]} 1... Nf6 {[%clk 0:03:00.8]} 2. c4 {[%clk 0:03:02.8]}
2... g6 {[%clk 0:03:02.3]} 3. Nf3 {[%clk 0:03:04.1]} 3... Bg7 {[%clk 0:03:03.2]}
4. Bg5 {[%clk 0:03:05.6]} 4... O-O {[%clk 0:03:04.2]} 5. Nc3 {[%clk 0:03:07.2]}
5... d6 {[%clk 0:03:02.3]} 6. e3 {[%clk 0:03:08.6]} 6... Nbd7 {[%clk 0:03:00.2]}
7. Be2 {[%clk 0:03:09.8]} 7... c6 {[%clk 0:02:59]} 8. Qc2 {[%clk 0:03:10.7]}
8... Qa5 {[%clk 0:02:53.1]} 9. Bh4 {[%clk 0:03:10.2]} 9... e5 {[%clk 0:02:53.5]}
10. O-O {[%clk 0:03:09.5]} 10... Re8 {[%clk 0:02:50.8]} 11. Rad1 {[%clk
0:03:04]} 11... a6 {[%clk 0:02:35.7]} 12. a3 {[%clk 0:03:02.1]} 12... Qc7 {[%clk
0:02:36.2]} 13. h3 {[%clk 0:02:59.1]} 13... h6 {[%clk 0:02:25]} 14. b4 {[%clk
0:02:53.3]} 14... b6 {[%clk 0:01:58.6]} 15. Bg3 {[%clk 0:02:25.3]} 15... Bb7
{[%clk 0:01:54.1]} 16. Rc1 {[%clk 0:02:05.1]} 16... Qd8 {[%clk 0:01:49.6]} 17.
Rfd1 {[%clk 0:02:02]} 17... Qe7 {[%clk 0:01:50.6]} 18. d5 {[%clk 0:01:42.2]}
18... cxd5 {[%clk 0:01:39.3]} 19. Nxd5 {[%clk 0:01:42.4]} 19... Nxd5 {[%clk
0:01:39.7]} 20. cxd5 {[%clk 0:01:43.2]} 20... Rec8 {[%clk 0:01:39.4]} 21. Qb3
{[%clk 0:01:43.9]} 21... Nf6 {[%clk 0:01:35.2]} 22. Rxc8+ {[%clk 0:01:07.1]}
22... Rxc8 {[%clk 0:01:35.4]} 23. Bh4 {[%clk 0:01:02.1]} 23... Qc7 {[%clk
0:01:32.3]} 24. Bxf6 {[%clk 0:00:55.9]} 24... Bxf6 {[%clk 0:01:34.2]} 25. Nd2
{[%clk 0:00:42.7]} 25... Be7 {[%clk 0:01:29.7]} 26. e4 {[%clk 0:00:26.2]} 26...
Qc2 {[%clk 0:01:07.1]} 27. Bg4 {[%clk 0:00:22.4]} 27... Qxb3 {[%clk 0:01:05.5]}
28. Nxb3 {[%clk 0:00:23.4]} 28... Rc3 {[%clk 0:01:07.2]} 29. Rc1 {[%clk
0:00:22.3]} 29... Rxb3 {[%clk 0:00:52.2]} 30. Rc7 {[%clk 0:00:23.2]} 30... Bh4
{[%clk 0:00:53.8]} 31. g3 {[%clk 0:00:22.2]} 31... Bg5 {[%clk 0:00:32.4]} 32.
Rxb7 {[%clk 0:00:23.2]} 32... Rxa3 {[%clk 0:00:30.7]} 33. h4 {[%clk 0:00:23.9]}
33... Bd2 {[%clk 0:00:14.4]} 34. Rxb6 {[%clk 0:00:24.6]} 34... h5 {[%clk
0:00:11.3]} 35. Bc8 {[%clk 0:00:24.9]} 35... Rb3 {[%clk 0:00:10.4]} 36. Bxa6
{[%clk 0:00:25.3]} 36... Bxb4 {[%clk 0:00:10.3]} 37. Kg2 {[%clk 0:00:24.1]}
37... Rb2 {[%clk 0:00:11.3]} 38. Kf3 {[%clk 0:00:23.8]} 38... Rxf2+ {[%clk
0:00:12]} 39. Kxf2 {[%clk 0:00:23.2]} 39... Bc5+ {[%clk 0:00:13.9]} 40. Kf3
{[%clk 0:00:24.7]} 40... Bxb6 {[%clk 0:00:15.8]} 41. g4 {[%clk 0:00:25.6]} 41...
Kg7 {[%clk 0:00:12.2]} 42. gxh5 {[%clk 0:00:26.7]} 42... gxh5 {[%clk 0:00:13]}
43. Bc8 {[%clk 0:00:25.9]} 43... Ba5 {[%clk 0:00:14.1]} 44. Kg3 {[%clk 0:00:26]}
44... Be1+ {[%clk 0:00:15]} 45. Kh3 {[%clk 0:00:27.2]} 45... Kg6 {[%clk
0:00:15.9]} 46. Bf5+ {[%clk 0:00:28.4]} 46... Kf6 {[%clk 0:00:17.4]} 47. Bh7
{[%clk 0:00:29.8]} 47... Ke7 {[%clk 0:00:18.6]} 48. Bf5 {[%clk 0:00:31.4]} 48...
Kd8 {[%clk 0:00:19.8]} 49. Bh7 {[%clk 0:00:30.3]} 49... Ke8 {[%clk 0:00:20.8]}
50. Bf5 {[%clk 0:00:31.4]} 50... Kf8 {[%clk 0:00:22.3]} 51. Bh7 {[%clk
0:00:32.5]} 51... Kg7 {[%clk 0:00:23.8]} 52. Bf5 {[%clk 0:00:33.9]} 52... Kg8
{[%clk 0:00:25]} 53. Bc8 {[%clk 0:00:35.1]} 53... Kf8 {[%clk 0:00:26.2]} 54. Bf5
{[%clk 0:00:36.7]} 54... Ke7 {[%clk 0:00:27.6]} 55. Bh7 {[%clk 0:00:38]} 55...
Kf6 {[%clk 0:00:28.7]} 56. Bf5 {[%clk 0:00:39.4]} 56... Bf2 {[%clk 0:00:30.1]}
57. Bc8 {[%clk 0:00:40.2]} 57... Be3 {[%clk 0:00:31.7]} 58. Bf5 {[%clk
0:00:41.6]} 58... Bd2 {[%clk 0:00:33.6]} 59. Bc8 {[%clk 0:00:43]} 59... Bc3
{[%clk 0:00:35.5]} 60. Bf5 {[%clk 0:00:44.6]} 60... Bb4 {[%clk 0:00:37.4]} 61.
Bc8 {[%clk 0:00:45.9]} 61... Be1 {[%clk 0:00:39.3]} 62. Bf5 {[%clk 0:00:47.4]}
62... Ke7 {[%clk 0:00:41.2]} 63. Bh7 {[%clk 0:00:48.4]} 63... Kd8 {[%clk
0:00:43.1]} 64. Bg8 {[%clk 0:00:49.6]} 64... Bd2 {[%clk 0:00:45]} 65. Bxf7
{[%clk 0:00:50.7]} 65... Ke7 {[%clk 0:00:46.8]} 66. Bxh5 {[%clk 0:00:51.9]}
66... Kf6 {[%clk 0:00:48.7]} 67. Kg4 {[%clk 0:00:53.2]} 67... Bc1 {[%clk
0:00:50.6]} 68. Be8 {[%clk 0:00:53.5]} 68... Bd2 {[%clk 0:00:52.5]} 69. Bd7
{[%clk 0:00:54.7]} 69... Bh6 {[%clk 0:00:53.9]} 70. Kh5 {[%clk 0:00:55.5]} 70...
Bc1 {[%clk 0:00:55.8]} 71. Kg4 {[%clk 0:00:56.8]} 71... Bd2 {[%clk 0:00:56.8]}
72. Bf5 {[%clk 0:00:57.7]} 72... Bf4 {[%clk 0:00:57.9]} 73. h5 {[%clk
0:00:59.1]} 73... Bh6 {[%clk 0:00:58.6]} 74. Bg6 {[%clk 0:00:59.6]} 74... Bf4
{[%clk 0:00:59.6]} 75. Be8 {[%clk 0:00:59]} 75... Bh6 {[%clk 0:01:01.5]} 76. Bg6
{[%clk 0:00:59.9]} 76... Bf4 {[%clk 0:01:02.4]} 77. Kf3 {[%clk 0:01:01.2]} 77...
Bh6 {[%clk 0:01:03.4]} 78. Ke2 {[%clk 0:01:02.6]} 78... Ke7 {[%clk 0:01:04.3]}
79. Kd3 {[%clk 0:01:04]} 79... Bg5 {[%clk 0:01:05.8]} 80. Kc4 {[%clk 0:01:05.5]}
80... Bh6 {[%clk 0:01:07.7]} 81. Kb5 {[%clk 0:01:07]} 81... Bg5 {[%clk
0:01:09.6]} 82. Kc6 {[%clk 0:01:08.4]} 82... Bh6 {[%clk 0:01:11.5]} 83. Kb7
{[%clk 0:01:06.7]} 83... Bg5 {[%clk 0:01:13.4]} 84. Kc8 {[%clk 0:01:08.1]} 84...
Bh6 {[%clk 0:01:13.4]} 1/2-1/2